[Event "*** Titled Tuesday Blitz"]
[Site "Chess.com"]
[Date "2020.05.12"]
[Round "10"]
[White "cukus"]
[Black "EvgenyRomanov"]
[Result "0-1"]
[WhiteElo "2520"]
[BlackElo "2650"]
[TimeControl "180+1"]
[EndTime "11:54:28 PDT"]
[Termination "EvgenyRomanov won by resignation"]

1. e4 {[%clk 0:03:00.9]} 1... e6 {[%clk 0:02:58.8]} 2. d4 {[%clk 0:03:00.7]}
2... d5 {[%clk 0:02:59.7]} 3. Nc3 {[%clk 0:03:01.1]} 3... Bb4 {[%clk 0:02:58.9]}
4. e5 {[%clk 0:03:01.5]} 4... c5 {[%clk 0:02:57.9]} 5. a3 {[%clk 0:03:02]} 5...
Bxc3+ {[%clk 0:02:58.5]} 6. bxc3 {[%clk 0:03:02.9]} 6... Qa5 {[%clk 0:02:58.5]}
7. Bd2 {[%clk 0:03:02.3]} 7... Qa4 {[%clk 0:02:58.8]} 8. Qg4 {[%clk 0:03:02.3]}
8... Kf8 {[%clk 0:02:56.7]} 9. Nf3 {[%clk 0:03:02.7]} 9... Ne7 {[%clk
0:02:54.2]} 10. h3 {[%clk 0:03:03]} 10... Qxc2 {[%clk 0:02:44.3]} 11. dxc5
{[%clk 0:03:01.4]} 11... Nd7 {[%clk 0:02:37.1]} 12. Rc1 {[%clk 0:02:55.7]} 12...
Qe4+ {[%clk 0:02:36]} 13. Be3 {[%clk 0:02:19.9]} 13... Nf5 {[%clk 0:02:26.5]}
14. Qxe4 {[%clk 0:01:00.5]} 14... dxe4 {[%clk 0:02:27.4]} 15. Ng5 {[%clk
0:00:59.9]} 15... Nxe3 {[%clk 0:02:20.8]} 16. fxe3 {[%clk 0:01:00.8]} 16... Nxc5
{[%clk 0:02:20.6]} 17. Rd1 {[%clk 0:00:59.9]} 17... Ke7 {[%clk 0:02:13.1]} 18.
Rd4 {[%clk 0:00:58.4]} 18... Bd7 {[%clk 0:02:08.1]} 19. Nxe4 {[%clk 0:00:57.1]}
19... Nxe4 {[%clk 0:02:06.2]} 20. Rxe4 {[%clk 0:00:58]} 20... Rac8 {[%clk
0:02:04]} 21. c4 {[%clk 0:00:58.3]} 21... Rc5 {[%clk 0:02:03.8]} 22. Be2 {[%clk
0:00:53.7]} 22... Bc6 {[%clk 0:02:00.9]} 23. Rg4 {[%clk 0:00:51.4]} 23... g6
{[%clk 0:02:00.9]} 24. Kf2 {[%clk 0:00:49.3]} 24... Rxe5 {[%clk 0:01:59]} 25.
Bf3 {[%clk 0:00:48.5]} 25... Rc8 {[%clk 0:01:58]} 26. Rd4 {[%clk 0:00:46.6]}
26... Ra5 {[%clk 0:01:52.9]} 27. Rb1 {[%clk 0:00:41.1]} 27... Bxf3 {[%clk
0:01:44.7]} 28. Kxf3 {[%clk 0:00:35.3]} 28... b6 {[%clk 0:01:45.3]} 29. Rbd1
{[%clk 0:00:33.4]} 29... Rc7 {[%clk 0:01:44.9]} 30. R1d3 {[%clk 0:00:32.1]}
30... Rac5 {[%clk 0:01:37.5]} 31. g4 {[%clk 0:00:27.4]} 31... Rxc4 {[%clk
0:01:32.9]} 32. g5 {[%clk 0:00:27.8]} 32... Rxd4 {[%clk 0:01:15.6]} 33. Rxd4
{[%clk 0:00:26.3]} 33... Rc5 {[%clk 0:01:11.1]} 34. h4 {[%clk 0:00:24.8]} 34...
b5 {[%clk 0:01:06.5]} 35. a4 {[%clk 0:00:24.1]} 35... a6 {[%clk 0:01:05.3]} 36.
axb5 {[%clk 0:00:24.5]} 36... axb5 {[%clk 0:01:05.6]} 37. Rb4 {[%clk 0:00:19.8]}
37... Kd6 {[%clk 0:01:03.8]} 38. Ke4 {[%clk 0:00:18.8]} 38... Kc6 {[%clk
0:01:03.2]} 39. Kd3 {[%clk 0:00:17.5]} 39... Rc1 {[%clk 0:00:50.2]} 40. Rf4
{[%clk 0:00:16.8]} 40... Rc4 {[%clk 0:00:41]} 41. Rxc4+ {[%clk 0:00:13.3]} 41...
bxc4+ {[%clk 0:00:40.7]} 42. Kxc4 {[%clk 0:00:14.2]} 42... Kd6 {[%clk
0:00:36.4]} 43. Kd4 {[%clk 0:00:14.8]} 43... e5+ {[%clk 0:00:36.3]} 44. Kd3
{[%clk 0:00:13.1]} 44... Ke6 {[%clk 0:00:33]} 45. Ke4 {[%clk 0:00:09.4]} 45...
f5+ {[%clk 0:00:30.6]} 46. gxf6 {[%clk 0:00:09.4]} 46... Kxf6 {[%clk 0:00:30.8]}
47. Kf3 {[%clk 0:00:10]} 47... Kf5 {[%clk 0:00:27.5]} 48. e4+ {[%clk 0:00:10.5]}
48... Kf6 {[%clk 0:00:26.8]} 49. Kf2 {[%clk 0:00:11]} 49... h6 {[%clk
0:00:26.8]} 50. Kf3 {[%clk 0:00:10.5]} 50... Ke6 {[%clk 0:00:26.9]} 51. Kg4
{[%clk 0:00:10]} 51... Kd6 {[%clk 0:00:26.9]} 52. h5 {[%clk 0:00:09.2]} 52...
gxh5+ {[%clk 0:00:17.5]} 53. Kxh5 {[%clk 0:00:09.6]} 53... Kc5 {[%clk
0:00:17.8]} 54. Kxh6 {[%clk 0:00:06.8]} 54... Kd4 {[%clk 0:00:18]} 55. Kg5
{[%clk 0:00:06.5]} 55... Kxe4 {[%clk 0:00:18.2]} 0-1

[Event "*** Titled Tuesday Blitz"]
[Site "Chess.com"]
[Date "2020.05.12"]
[Round "10"]
[White "chessuriel"]
[Black "Sunnika"]
[Result "1-0"]
[WhiteElo "2159"]
[BlackElo "2269"]
[TimeControl "180+1"]
[EndTime "11:54:30 PDT"]
[Termination "chessuriel won by checkmate"]

1. e4 {[%clk 0:03:00.9]} 1... c5 {[%clk 0:02:57.4]} 2. Nf3 {[%clk 0:02:52.6]}
2... Nc6 {[%clk 0:02:56.6]} 3. d4 {[%clk 0:02:52.1]} 3... cxd4 {[%clk
0:02:55.9]} 4. Nxd4 {[%clk 0:02:53]} 4... Nf6 {[%clk 0:02:55.1]} 5. Nc3 {[%clk
0:02:52.2]} 5... e5 {[%clk 0:02:53.9]} 6. Ndb5 {[%clk 0:02:52.3]} 6... d6 {[%clk
0:02:51.7]} 7. Bg5 {[%clk 0:02:50.2]} 7... a6 {[%clk 0:02:51]} 8. Na3 {[%clk
0:02:50]} 8... b5 {[%clk 0:02:50.4]} 9. Nd5 {[%clk 0:02:49.3]} 9... Be7 {[%clk
0:02:49.2]} 10. Bxf6 {[%clk 0:02:47.2]} 10... Bxf6 {[%clk 0:02:48.8]} 11. c4
{[%clk 0:02:48.1]} 11... b4 {[%clk 0:02:47.5]} 12. Nc2 {[%clk 0:02:48.4]} 12...
a5 {[%clk 0:02:47.4]} 13. Qf3 {[%clk 0:02:43.2]} 13... Bg5 {[%clk 0:02:43.5]}
14. Rd1 {[%clk 0:02:41.8]} 14... O-O {[%clk 0:02:41.5]} 15. h4 {[%clk
0:02:37.1]} 15... Bh6 {[%clk 0:02:38.2]} 16. g4 {[%clk 0:02:36.6]} 16... Bf4
{[%clk 0:02:30.1]} 17. g5 {[%clk 0:02:28.9]} 17... Be6 {[%clk 0:02:19.4]} 18.
Nxf4 {[%clk 0:02:15.4]} 18... exf4 {[%clk 0:02:17.6]} 19. c5 {[%clk 0:02:15]}
19... Ne5 {[%clk 0:01:04.9]} 20. Qxf4 {[%clk 0:02:14.2]} 20... Bg4 {[%clk
0:01:00.3]} 21. Rxd6 {[%clk 0:02:10.9]} 21... Qe7 {[%clk 0:00:59.7]} 22. Nd4
{[%clk 0:01:44.1]} 22... Rad8 {[%clk 0:00:52.7]} 23. Nb5 {[%clk 0:00:53.1]}
23... Nf3+ {[%clk 0:00:45.4]} 24. Kd1 {[%clk 0:00:38.9]} 24... Ne5+ {[%clk
0:00:23.3]} 25. Kc1 {[%clk 0:00:34.1]} 25... Rxd6 {[%clk 0:00:20.2]} 26. cxd6
{[%clk 0:00:26.5]} 26... Qe6 {[%clk 0:00:17.7]} 27. Kb1 {[%clk 0:00:22.3]} 27...
Rc8 {[%clk 0:00:15.5]} 28. Rg1 {[%clk 0:00:17.8]} 28... a4 {[%clk 0:00:13.3]}
29. Rg3 {[%clk 0:00:16.7]} 29... b3 {[%clk 0:00:12.4]} 30. axb3 {[%clk
0:00:16.1]} 30... axb3 {[%clk 0:00:13.3]} 31. Qe3 {[%clk 0:00:15.7]} 31... Bh5
{[%clk 0:00:11.9]} 32. Qxb3 {[%clk 0:00:15.3]} 32... Qd7 {[%clk 0:00:11.3]} 33.
Rc3 {[%clk 0:00:15]} 33... Rb8 {[%clk 0:00:10.7]} 34. Rc5 {[%clk 0:00:14]} 34...
Nc6 {[%clk 0:00:09.8]} 35. e5 {[%clk 0:00:13.5]} 35... Nd4 {[%clk 0:00:09.8]}
36. Qb4 {[%clk 0:00:11.7]} 36... Qf5+ {[%clk 0:00:09.4]} 37. Ka2 {[%clk
0:00:09.2]} 37... Ra8+ {[%clk 0:00:09.1]} 38. Na3 {[%clk 0:00:09]} 38... Ne6
{[%clk 0:00:08.3]} 39. Bc4 {[%clk 0:00:08.3]} 39... Bg6 {[%clk 0:00:08.1]} 40.
Ra5 {[%clk 0:00:07.2]} 40... Qb1+ {[%clk 0:00:08.5]} 41. Nxb1 {[%clk 0:00:06.1]}
41... Rd8 {[%clk 0:00:06.8]} 42. Bxe6 {[%clk 0:00:04.9]} 42... fxe6 {[%clk
0:00:07.7]} 43. Qc4 {[%clk 0:00:02.8]} 43... Bf5 {[%clk 0:00:06.6]} 44. Nc3
{[%clk 0:00:03.7]} 44... h6 {[%clk 0:00:06.5]} 45. Ra7 {[%clk 0:00:03.6]} 45...
Rb8 {[%clk 0:00:05.5]} 46. Qc7 {[%clk 0:00:03.9]} 46... Rxb2+ {[%clk 0:00:04.8]}
47. Kxb2 {[%clk 0:00:02.5]} 47... hxg5 {[%clk 0:00:04]} 48. Qxg7# {[%clk
0:00:03.4]} 1-0

[Event "*** Titled Tuesday Blitz"]
[Site "Chess.com"]
[Date "2020.05.12"]
[Round "10"]
[White "ZoltanChef"]
[Black "m-garcett"]
[Result "1/2-1/2"]
[WhiteElo "2115"]
[BlackElo "1969"]
[TimeControl "180+1"]
[EndTime "11:54:31 PDT"]
[Termination "Game drawn - insufficient material"]

1. e4 {[%clk 0:03:00.9]} 1... c5 {[%clk 0:02:59.4]} 2. Nf3 {[%clk 0:03:00.2]}
2... d6 {[%clk 0:02:59.8]} 3. b3 {[%clk 0:02:58]} 3... Nf6 {[%clk 0:02:58.3]} 4.
Nc3 {[%clk 0:02:57.2]} 4... g6 {[%clk 0:02:57.9]} 5. Bb2 {[%clk 0:02:56.8]} 5...
Bg7 {[%clk 0:02:58.2]} 6. d3 {[%clk 0:02:55.6]} 6... O-O {[%clk 0:02:57.6]} 7.
h3 {[%clk 0:02:55.8]} 7... Nc6 {[%clk 0:02:57.4]} 8. g4 {[%clk 0:02:55.3]} 8...
a6 {[%clk 0:02:52.8]} 9. Bg2 {[%clk 0:02:55.1]} 9... b5 {[%clk 0:02:51.4]} 10.
Ne2 {[%clk 0:02:43.9]} 10... Bb7 {[%clk 0:02:49.5]} 11. Ng3 {[%clk 0:02:41.5]}
11... Qc7 {[%clk 0:02:46]} 12. Qc1 {[%clk 0:02:38.6]} 12... e6 {[%clk
0:02:37.3]} 13. g5 {[%clk 0:02:37.2]} 13... Nd7 {[%clk 0:02:35.6]} 14. Bxg7
{[%clk 0:02:36]} 14... Kxg7 {[%clk 0:02:36.5]} 15. Qb2+ {[%clk 0:02:35.4]} 15...
e5 {[%clk 0:02:35.5]} 16. h4 {[%clk 0:02:35]} 16... f5 {[%clk 0:02:32.4]} 17.
exf5 {[%clk 0:02:25.6]} 17... gxf5 {[%clk 0:02:32.2]} 18. Nh5+ {[%clk
0:02:21.3]} 18... Kh8 {[%clk 0:02:31.5]} 19. O-O-O {[%clk 0:02:14.5]} 19... c4
{[%clk 0:02:15]} 20. dxc4 {[%clk 0:02:12]} 20... b4 {[%clk 0:02:13.3]} 21. Rhe1
{[%clk 0:01:55.4]} 21... Rae8 {[%clk 0:02:06.1]} 22. Rd2 {[%clk 0:01:36.4]}
22... Nd4 {[%clk 0:02:04.4]} 23. Rxd4 {[%clk 0:01:30.4]} 23... exd4 {[%clk
0:01:56.2]} 24. Nxd4 {[%clk 0:01:27.7]} 24... Rxe1+ {[%clk 0:01:53.7]} 25. Kd2
{[%clk 0:01:27.8]} 25... Re5 {[%clk 0:01:46.7]} 26. f4 {[%clk 0:01:24]} 26...
Bxg2 {[%clk 0:01:44.9]} 27. Ne6 {[%clk 0:01:21.9]} 27... Qc8 {[%clk 0:01:38.3]}
28. fxe5 {[%clk 0:01:17.1]} 28... Nxe5 {[%clk 0:01:34.7]} 29. Nxf8 {[%clk
0:01:13.8]} 29... Qxf8 {[%clk 0:01:35.6]} 30. Qd4 {[%clk 0:01:08.8]} 30... f4
{[%clk 0:01:11.4]} 31. Nxf4 {[%clk 0:00:59.3]} 31... Qf5 {[%clk 0:01:01.3]} 32.
c5 {[%clk 0:00:55.6]} 32... Kg8 {[%clk 0:01:00]} 33. Kc1 {[%clk 0:00:51.7]}
33... Be4 {[%clk 0:00:50.4]} 34. cxd6 {[%clk 0:00:48.9]} 34... Qxf4+ {[%clk
0:00:50]} 35. Kb2 {[%clk 0:00:47.1]} 35... Qf5 {[%clk 0:00:35.2]} 36. Qxb4
{[%clk 0:00:46.1]} 36... Bxc2 {[%clk 0:00:32.1]} 37. Qb8+ {[%clk 0:00:44.6]}
37... Kf7 {[%clk 0:00:30.3]} 38. Qc7+ {[%clk 0:00:44.6]} 38... Kg6 {[%clk
0:00:18.5]} 39. Qxc2 {[%clk 0:00:43.8]} 39... Qxc2+ {[%clk 0:00:17.8]} 40. Kxc2
{[%clk 0:00:44.4]} 40... Kf7 {[%clk 0:00:17.2]} 41. Kc3 {[%clk 0:00:44]} 41...
Ke6 {[%clk 0:00:17.6]} 42. h5 {[%clk 0:00:42.6]} 42... Kxd6 {[%clk 0:00:17.4]}
43. g6 {[%clk 0:00:42.2]} 43... hxg6 {[%clk 0:00:17.3]} 44. hxg6 {[%clk
0:00:42.7]} 44... Nxg6 {[%clk 0:00:18.2]} 45. Kb4 {[%clk 0:00:43]} 45... Kc6
{[%clk 0:00:18.6]} 46. Ka5 {[%clk 0:00:43.9]} 46... Kb7 {[%clk 0:00:18.3]} 47.
b4 {[%clk 0:00:44.3]} 47... Ne5 {[%clk 0:00:17.2]} 48. b5 {[%clk 0:00:45.2]}
48... Nc4+ {[%clk 0:00:15.2]} 49. Kb4 {[%clk 0:00:45.5]} 49... axb5 {[%clk
0:00:10.3]} 50. Kxb5 {[%clk 0:00:45.4]} 50... Na3+ {[%clk 0:00:08.8]} 51. Kb4
{[%clk 0:00:45.5]} 51... Nb1 {[%clk 0:00:08.5]} 52. Kb3 {[%clk 0:00:43]} 52...
Nd2+ {[%clk 0:00:06.9]} 53. Kc3 {[%clk 0:00:43.2]} 53... Ne4+ {[%clk 0:00:06.7]}
54. Kd4 {[%clk 0:00:43.5]} 54... Nd6 {[%clk 0:00:07]} 55. Kc5 {[%clk 0:00:43.4]}
55... Nc8 {[%clk 0:00:07.9]} 56. Kb5 {[%clk 0:00:42.4]} 56... Ka8 {[%clk
0:00:08.8]} 57. Kc6 {[%clk 0:00:42.4]} 57... Kb8 {[%clk 0:00:09.7]} 58. Kd7
{[%clk 0:00:42.5]} 58... Nb6+ {[%clk 0:00:09.5]} 59. Kc6 {[%clk 0:00:42.7]}
59... Na4 {[%clk 0:00:09.2]} 60. Kd6 {[%clk 0:00:39]} 60... Nc3 {[%clk
0:00:08.6]} 61. a3 {[%clk 0:00:37.2]} 61... Nb5+ {[%clk 0:00:08.9]} 62. Kc5
{[%clk 0:00:38.1]} 62... Nxa3 {[%clk 0:00:09.8]} 1/2-1/2

[Event "*** Titled Tuesday Blitz"]
[Site "Chess.com"]
[Date "2020.05.12"]
[Round "10"]
[White "mmaks007"]
[Black "szefru"]
[Result "1/2-1/2"]
[WhiteElo "2237"]
[BlackElo "2121"]
[TimeControl "180+1"]
[EndTime "11:54:38 PDT"]
[Termination "Game drawn by agreement"]

1. e4 {[%clk 0:03:00.9]} 1... Nf6 {[%clk 0:02:59.5]} 2. e5 {[%clk 0:03:00.4]}
2... Nd5 {[%clk 0:02:58.8]} 3. d4 {[%clk 0:03:01]} 3... d6 {[%clk 0:02:58.6]} 4.
Nf3 {[%clk 0:02:59.8]} 4... g6 {[%clk 0:02:58.3]} 5. exd6 {[%clk 0:02:56.6]}
5... cxd6 {[%clk 0:02:57.6]} 6. c4 {[%clk 0:02:56.7]} 6... Nb6 {[%clk
0:02:57.1]} 7. h3 {[%clk 0:02:56.5]} 7... Bg7 {[%clk 0:02:54.8]} 8. Be2 {[%clk
0:02:50.5]} 8... O-O {[%clk 0:02:53.4]} 9. O-O {[%clk 0:02:51]} 9... Qc7 {[%clk
0:02:48]} 10. b3 {[%clk 0:02:47.8]} 10... Nc6 {[%clk 0:02:46.5]} 11. Bb2 {[%clk
0:02:46.3]} 11... e5 {[%clk 0:02:42.3]} 12. dxe5 {[%clk 0:02:45.7]} 12... dxe5
{[%clk 0:02:42.1]} 13. Nbd2 {[%clk 0:02:43.7]} 13... Rd8 {[%clk 0:02:40.6]} 14.
Qc1 {[%clk 0:02:42.2]} 14... Bf5 {[%clk 0:02:37.5]} 15. a3 {[%clk 0:02:37.6]}
15... Bh6 {[%clk 0:01:35.2]} 16. Bc3 {[%clk 0:02:27.5]} 16... Nd4 {[%clk
0:01:08]} 17. Nxd4 {[%clk 0:02:21.3]} 17... exd4 {[%clk 0:01:08.9]} 18. Bb2
{[%clk 0:02:21.5]} 18... d3 {[%clk 0:01:00.5]} 19. Bf3 {[%clk 0:02:20.4]} 19...
Nd7 {[%clk 0:00:56.3]} 20. Qd1 {[%clk 0:02:17]} 20... Ne5 {[%clk 0:00:56.2]} 21.
g4 {[%clk 0:02:07.7]} 21... Bxd2 {[%clk 0:00:43.7]} 22. Bxe5 {[%clk 0:02:01.9]}
22... Qxe5 {[%clk 0:00:44.6]} 23. Qxd2 {[%clk 0:02:01.8]} 23... Be6 {[%clk
0:00:43.5]} 24. Rae1 {[%clk 0:01:59.5]} 24... Qf6 {[%clk 0:00:43.4]} 25. Kg2
{[%clk 0:01:55.8]} 25... Rab8 {[%clk 0:00:43.6]} 26. Re3 {[%clk 0:01:48.2]}
26... Qd4 {[%clk 0:00:40.6]} 27. Rd1 {[%clk 0:01:46.8]} 27... Qc5 {[%clk
0:00:40.4]} 28. Rxd3 {[%clk 0:01:41.6]} 28... Rxd3 {[%clk 0:00:39.9]} 29. Qxd3
{[%clk 0:01:42.5]} 29... Qxa3 {[%clk 0:00:40.1]} 30. Qd6 {[%clk 0:01:35.5]}
30... Qxd6 {[%clk 0:00:36.6]} 31. Rxd6 {[%clk 0:01:36.4]} 31... b5 {[%clk
0:00:35]} 32. Be2 {[%clk 0:00:39.1]} 32... a5 {[%clk 0:00:30.1]} 33. c5 {[%clk
0:00:24.8]} 33... Bxb3 {[%clk 0:00:21]} 34. c6 {[%clk 0:00:24.7]} 34... Be6
{[%clk 0:00:19.4]} 35. c7 {[%clk 0:00:21.8]} 35... Rc8 {[%clk 0:00:18.1]} 36.
Rd8+ {[%clk 0:00:20.5]} 36... Kg7 {[%clk 0:00:18.4]} 37. Rxc8 {[%clk 0:00:19.7]}
37... Bxc8 {[%clk 0:00:19.3]} 38. Bxb5 {[%clk 0:00:18.3]} 38... Kf6 {[%clk
0:00:20.2]} 39. Kf3 {[%clk 0:00:18.4]} 39... Ke7 {[%clk 0:00:20.7]} 40. Bc4
{[%clk 0:00:16.2]} 40... Kd6 {[%clk 0:00:21.6]} 41. Bxf7 {[%clk 0:00:15.8]}
41... Kxc7 {[%clk 0:00:21.4]} 42. Bg8 {[%clk 0:00:16.1]} 42... h5 {[%clk
0:00:21.6]} 43. gxh5 {[%clk 0:00:15.6]} 43... gxh5 {[%clk 0:00:22.5]} 44. Bf7
{[%clk 0:00:16]} 44... Bxh3 {[%clk 0:00:19.9]} 45. Bxh5 {[%clk 0:00:14.5]} 45...
Be6 {[%clk 0:00:20.5]} 46. Be8 {[%clk 0:00:12.8]} 46... Kd8 {[%clk 0:00:20.1]}
47. Ba4 {[%clk 0:00:12.1]} 47... Ke7 {[%clk 0:00:20.3]} 48. Kf4 {[%clk
0:00:12.4]} 48... Bd7 {[%clk 0:00:20.5]} 49. Ke5 {[%clk 0:00:12.4]} 49... Bxa4
{[%clk 0:00:20.4]} 50. Kd4 {[%clk 0:00:12.1]} 50... Bd7 {[%clk 0:00:20.9]} 51.
Kc3 {[%clk 0:00:12.3]} 51... a4 {[%clk 0:00:21.3]} 52. Kb2 {[%clk 0:00:13.2]}
52... Kf6 {[%clk 0:00:21.5]} 53. Ka1 {[%clk 0:00:14.1]} 53... Kf5 {[%clk
0:00:22]} 54. f4 {[%clk 0:00:15]} 54... Kxf4 {[%clk 0:00:22.7]} 55. Kb2 {[%clk
0:00:15.9]} 55... Ke3 {[%clk 0:00:23.2]} 56. Ka1 {[%clk 0:00:16.8]} 56... Kd2
{[%clk 0:00:23.5]} 57. Kb2 {[%clk 0:00:17.7]} 57... Kd3 {[%clk 0:00:23.6]} 58.
Ka1 {[%clk 0:00:18.6]} 58... Kc3 {[%clk 0:00:23.5]} 59. Kb1 {[%clk 0:00:18.2]}
59... Kb3 {[%clk 0:00:23.7]} 60. Ka1 {[%clk 0:00:19.1]} 60... a3 {[%clk
0:00:23.4]} 61. Kb1 {[%clk 0:00:20]} 61... Bf5+ {[%clk 0:00:21.9]} 62. Ka1
{[%clk 0:00:20.9]} 1/2-1/2

[Event "*** Titled Tuesday Blitz"]
[Site "Chess.com"]
[Date "2020.05.12"]
[Round "10"]
[White "NormWeinstein"]
[Black "Batsai"]
[Result "0-1"]
[WhiteElo "2406"]
[BlackElo "2283"]
[TimeControl "180+1"]
[EndTime "11:54:40 PDT"]
[Termination "Batsai won on time"]

1. e4 {[%clk 0:03:00.9]} 1... c6 {[%clk 0:03:00.1]} 2. d3 {[%clk 0:02:55.9]}
2... d5 {[%clk 0:03:00.2]} 3. Nd2 {[%clk 0:02:56.3]} 3... Nf6 {[%clk 0:03:00]}
4. Ngf3 {[%clk 0:02:56.2]} 4... Bg4 {[%clk 0:02:59.4]} 5. Be2 {[%clk 0:02:56.2]}
5... e6 {[%clk 0:02:59.6]} 6. c3 {[%clk 0:02:54.4]} 6... Be7 {[%clk 0:02:59.9]}
7. O-O {[%clk 0:02:54.1]} 7... O-O {[%clk 0:02:59.3]} 8. Re1 {[%clk 0:02:53.1]}
8... Qc7 {[%clk 0:02:55.6]} 9. Qc2 {[%clk 0:02:50.3]} 9... Rd8 {[%clk
0:02:51.4]} 10. e5 {[%clk 0:02:47.9]} 10... Ne8 {[%clk 0:02:47.3]} 11. d4 {[%clk
0:02:44.1]} 11... Nd7 {[%clk 0:02:44]} 12. Bd3 {[%clk 0:02:43.5]} 12... Nf8
{[%clk 0:02:44.4]} 13. h3 {[%clk 0:02:34.6]} 13... Bh5 {[%clk 0:02:44.2]} 14.
Nh2 {[%clk 0:02:29.1]} 14... c5 {[%clk 0:02:35.6]} 15. dxc5 {[%clk 0:02:26.9]}
15... Bxc5 {[%clk 0:02:33.4]} 16. Nb3 {[%clk 0:02:22.4]} 16... Be7 {[%clk
0:02:31.8]} 17. Nd4 {[%clk 0:02:14.9]} 17... a6 {[%clk 0:02:31.9]} 18. Nf1
{[%clk 0:02:03.1]} 18... b5 {[%clk 0:02:29.8]} 19. Ng3 {[%clk 0:02:00.1]} 19...
Bg6 {[%clk 0:02:30.1]} 20. f4 {[%clk 0:01:53.9]} 20... Bh4 {[%clk 0:02:04.2]}
21. Kh2 {[%clk 0:01:46]} 21... Rac8 {[%clk 0:02:02.5]} 22. Qe2 {[%clk 0:01:42]}
22... Bxd3 {[%clk 0:01:53.6]} 23. Qxd3 {[%clk 0:01:41.8]} 23... f5 {[%clk
0:01:53.9]} 24. exf6 {[%clk 0:01:35.3]} 24... Nxf6 {[%clk 0:01:54]} 25. Nxe6
{[%clk 0:01:32]} 25... Nxe6 {[%clk 0:01:46.3]} 26. Rxe6 {[%clk 0:01:31.6]} 26...
Qf7 {[%clk 0:01:35.6]} 27. Re5 {[%clk 0:01:17.1]} 27... d4 {[%clk 0:01:23.8]}
28. cxd4 {[%clk 0:01:13.3]} 28... Nd5 {[%clk 0:01:14.1]} 29. f5 {[%clk
0:01:10.7]} 29... Bf6 {[%clk 0:01:11.7]} 30. Qe4 {[%clk 0:01:09.2]} 30... Nb4
{[%clk 0:01:08]} 31. Bf4 {[%clk 0:01:03.5]} 31... Bxe5 {[%clk 0:01:04.3]} 32.
Bxe5 {[%clk 0:01:00.6]} 32... Nc6 {[%clk 0:00:45.5]} 33. Rf1 {[%clk 0:00:44.8]}
33... Qd5 {[%clk 0:00:42.8]} 34. Rf4 {[%clk 0:00:26.8]} 34... Qxe4 {[%clk
0:00:39.3]} 35. Nxe4 {[%clk 0:00:22.1]} 35... Rd5 {[%clk 0:00:33.9]} 36. Ng5
{[%clk 0:00:19.1]} 36... Nxe5 {[%clk 0:00:30.3]} 37. dxe5 {[%clk 0:00:19]} 37...
Rxe5 {[%clk 0:00:31.2]} 38. Rf2 {[%clk 0:00:18.2]} 38... Rec5 {[%clk 0:00:25.5]}
39. Ne6 {[%clk 0:00:14.9]} 39... Rc2 {[%clk 0:00:25]} 40. Rf3 {[%clk 0:00:15.2]}
40... Rxb2 {[%clk 0:00:10.2]} 41. Rg3 {[%clk 0:00:15.1]} 41... g6 {[%clk
0:00:10.4]} 42. fxg6 {[%clk 0:00:13.5]} 42... hxg6 {[%clk 0:00:11.3]} 43. Rxg6+
{[%clk 0:00:12.3]} 43... Kf7 {[%clk 0:00:11.7]} 44. Rh6 {[%clk 0:00:12.8]} 44...
Rcc2 {[%clk 0:00:10.3]} 45. Nf4 {[%clk 0:00:12.6]} 45... Rxa2 {[%clk 0:00:10.2]}
46. Kg3 {[%clk 0:00:11.1]} 46... b4 {[%clk 0:00:08.2]} 47. Kg4 {[%clk
0:00:10.7]} 47... b3 {[%clk 0:00:05.8]} 48. Rb6 {[%clk 0:00:08.9]} 48... b2
{[%clk 0:00:05.2]} 49. h4 {[%clk 0:00:05.7]} 49... Ra1 {[%clk 0:00:03.7]} 50.
Rb7+ {[%clk 0:00:06.1]} 50... Kf6 {[%clk 0:00:03.5]} 51. Rb6+ {[%clk 0:00:05.5]}
51... Ke5 {[%clk 0:00:03.4]} 52. Nd3+ {[%clk 0:00:05]} 52... Ke4 {[%clk
0:00:03.7]} 53. Nxb2 {[%clk 0:00:04.9]} 53... Rxg2+ {[%clk 0:00:03.7]} 54. Kh5
{[%clk 0:00:04.1]} 54... Ra5+ {[%clk 0:00:04]} 55. Kh6 {[%clk 0:00:03.4]} 55...
Rb5 {[%clk 0:00:04.2]} 56. Re6+ {[%clk 0:00:02.9]} 56... Kf5 {[%clk 0:00:03.9]}
0-1